{"text_format":"3","workbook":"xlsx","n_sheets":4,"sheets":["เริ่ม","พารามิเตอร์ของโครงการ","รายละเอียดโครงการ","ผลรวมของโครงการ"],"not_rendered":{"charts":2,"defined_names":3,"pivot_tables":1},"read":"whole","date_system":"1900"}

{"sheet":"เริ่ม","index":0,"n_rows":8,"n_cols":2,"rows_kept":8}
[null,"เกี่ยวกับเทมเพลตนี้"]
[]
[null,"ใช้เวิร์กบุ๊กนี้เพื่อติดตามพารามิเตอร์โครงการ รายละเอียดโครงการ และผลรวมของโครงการในระหว่างการวางแผนโครงการสำหรับสำนักงานทนายความ"]
[null,"กรอกชื่อบริษัทในเวิร์กชีตพารามิเตอร์โครงการ และจะมีการอัปเดตโดยอัตโนมัติในเวิร์กชีตอื่นๆ"]
[null,"ใส่ข้อมูลในเวิร์กชีตพารามิเตอร์โครงการเพื่ออัปเดตแผนภูมิคอลัมน์ และในเวิร์กชีตรายละเอียดโครงการ PivotTable ในเวิร์กชีตผลรวมของโครงการจะอัปเดตโดยอัตโนมัติ"]
[null,"หมายเหตุ:  "]
[null,"คำแนะนำเพิ่มเติมจะอยู่ในคอลัมน์ A ของเวิร์กชีตแต่ละแผ่น ข้อความนี้ได้ถูกซ่อนไว้โดยตั้งใจ เมื่อต้องการเอาข้อความออก ให้เลือกคอลัมน์ A แล้วเลือก ลบ เมื่อต้องการยกเลิกการซ่อนข้อความ ให้เลือกคอลัมน์ A แล้วเปลี่ยนสีฟอนต์"]
[null,"เมื่อต้องการเรียนรู้เพิ่มเติมเกี่ยวกับตารางในเวิร์กชีต ให้กด SHIFT แล้วตามด้วย F10 ภายในตาราง เลือกตัวเลือก ตาราง จากนั้นเลือก ข้อความแสดงแทน สำหรับ PivotTable ในเวิร์กชีตผลรวมของโครงการ ให้กด SHIFT แล้วตามด้วย F10 ภายในตาราง เลือกตัวเลือก PivotTable จากนั้นเลือกแท็บ ข้อความแสดงแทน"]

{"sheet":"พารามิเตอร์ของโครงการ","index":1,"n_rows":19,"n_cols":9,"rows_kept":19}
["สร้างพารามิเตอร์โครงการในเวิร์กชีตนี้ ใส่ชื่อบริษัทในเซลล์ด้านขวา คำแนะนำที่มีประโยชน์จะอยู่ในเซลล์ในคอลัมน์นี้","ชื่อบริษัท"]
["ชื่อของเวิร์กชีตนี้จะอยู่ในเซลล์ด้านขวา","การวางแผนโครงการสำหรับสำนักงานทนายความ"]
["ข้อความที่เป็นความลับจะอยู่ในเซลล์ด้านขวา",{"$f":"B1&\"ที่เป็นความลับ\"","v":"ชื่อบริษัทที่เป็นความลับ"}]
["เคล็ดลับจะอยู่ในเซลล์ด้านขวา","เซลล์ที่แรเงาไว้จะคำนวณให้คุณโดยอัตโนมัติ คุณไม่จำเป็นต้องป้อนข้อมูลในเซลล์เหล่านี้"]
["ใส่รายละเอียดในตารางพารามิเตอร์โดยเริ่มจากเซลล์ด้านขวา คำแนะนำถัดไปอยู่ในเซลล์ A12","ชนิดโครงการ","คู่ค้าทั่วไป","ทนายความด้านธุรกิจ","ทนายฝ่ายจำเลย","ทนายด้านทรัพย์สินทางปัญญา","ทนายด้านการล้มละลาย","เจ้าหน้าที่ธุรการ","ผลรวม"]
[null,"การรวมธุรกิจ",{"v":0.1,"d":"10%"},{"v":0.4,"d":"40%"},{"v":0,"d":"0%"},{"v":0,"d":"0%"},{"v":0,"d":"0%"},{"v":0.5,"d":"50%"},{"$f":"SUM(พารามิเตอร์[[#This Row],[คู่ค้าทั่วไป]:[เจ้าหน้าที่ธุรการ]])","v":{"v":1,"d":"100%"}}]
[null,"การเข้าซื้อธุรกิจ",{"v":0.1,"d":"10%"},{"v":0.4,"d":"40%"},{"v":0,"d":"0%"},{"v":0.1,"d":"10%"},{"v":0,"d":"0%"},{"v":0.4,"d":"40%"},{"$f":"SUM(พารามิเตอร์[[#This Row],[คู่ค้าทั่วไป]:[เจ้าหน้าที่ธุรการ]])","v":{"v":1,"d":"100%"}}]
[null,"การป้องกันความรับผิดชอบต่อผลิตภัณฑ์",{"v":0.2,"d":"20%"},{"v":0,"d":"0%"},{"v":0.5,"d":"50%"},{"v":0,"d":"0%"},{"v":0,"d":"0%"},{"v":0.3,"d":"30%"},{"$f":"SUM(พารามิเตอร์[[#This Row],[คู่ค้าทั่วไป]:[เจ้าหน้าที่ธุรการ]])","v":{"v":1,"d":"100%"}}]
[null,"การยื่นขอรับสิทธิบัตร",{"v":0.1,"d":"10%"},{"v":0,"d":"0%"},{"v":0,"d":"0%"},{"v":0.6,"d":"60%"},{"v":0,"d":"0%"},{"v":0.3,"d":"30%"},{"$f":"SUM(พารามิเตอร์[[#This Row],[คู่ค้าทั่วไป]:[เจ้าหน้าที่ธุรการ]])","v":{"v":1,"d":"100%"}}]
[null,"คดีความเกี่ยวกับพนักงาน",{"v":0.2,"d":"20%"},{"v":0.1,"d":"10%"},{"v":0.4,"d":"40%"},{"v":0,"d":"0%"},{"v":0,"d":"0%"},{"v":0.3,"d":"30%"},{"$f":"SUM(พารามิเตอร์[[#This Row],[คู่ค้าทั่วไป]:[เจ้าหน้าที่ธุรการ]])","v":{"v":1,"d":"100%"}}]
[null,"การล้มละลาย",{"v":0.1,"d":"10%"},{"v":0.2,"d":"20%"},{"v":0,"d":"0%"},{"v":0,"d":"0%"},{"v":0.4,"d":"40%"},{"v":0.3,"d":"30%"},{"$f":"SUM(พารามิเตอร์[[#This Row],[คู่ค้าทั่วไป]:[เจ้าหน้าที่ธุรการ]])","v":{"v":1,"d":"100%"}}]
["ใส่อัตราผสมในเซลล์ด้านขวา ตั้งแต่เซลล์ C12 ถึง H12 คำแนะนำถัดไปอยู่ในเซลล์ A14","อัตราผสม",{"v":350,"d":"฿350"},{"v":250,"d":"฿250"},{"v":300,"d":"฿300"},{"v":275,"d":"฿275"},{"v":225,"d":"฿225"},{"v":125,"d":"฿125"}]
[]
["แผนภูมิคอลัมน์ที่แสดงการเปรียบเทียบระหว่างต้นทุนที่วางแผนไว้และต้นทุนจริงอยู่ในเซลล์ด้านขวา และแผนภูมิคอลัมน์ที่แสดงการเปรียบเทียบระหว่างชั่วโมงที่วางแผนไว้เปรียบเทียบชั่วโมงจริงอยู่ในเซลล์ F14"]
[null,null,"คู่ค้าทั่วไป","ธุรกิจ","ทนายฝ่ายจำเลย","ทรัพย์สินทางปัญญา","การล้มละลาย","เจ้าหน้าที่ธุรการ"]
[null,"ต้นทุนที่วางแผนไว้",{"$f":"SUBTOTAL(109,รายละเอียด[คู่ค้าทั่วไป])","v":{"v":78750,"d":"฿78,750.00"}},{"$f":"SUBTOTAL(109,รายละเอียด[ทนายความด้านธุรกิจ])","v":{"v":66250,"d":"฿66,250.00"}},{"$f":"SUBTOTAL(109,รายละเอียด[ทนายฝ่ายจำเลย])","v":{"v":105000,"d":"฿105,000.00"}},{"$f":"SUBTOTAL(109,รายละเอียด[ทนายด้านทรัพย์สินทางปัญญา])","v":{"v":35750,"d":"฿35,750.00"}},{"$f":"SUBTOTAL(109,รายละเอียด[ทนายด้านการล้มละลาย])","v":{"v":0,"d":"฿0.00"}},{"$f":"SUBTOTAL(109,รายละเอียด[เจ้าหน้าที่ธุรการ])","v":{"v":66250,"d":"฿66,250.00"}}]
[null,"ต้นทุนจริง",{"$f":"SUBTOTAL(109,รายละเอียด[คู่ค้าทั่วไป 2])","v":{"v":79275,"d":"฿79,275.00"}},{"$f":"SUBTOTAL(109,รายละเอียด[ทนายความด้านธุรกิจ 2])","v":{"v":67375,"d":"฿67,375.00"}},{"$f":"SUBTOTAL(109,รายละเอียด[ทนายฝ่ายจำเลย 2])","v":{"v":105600,"d":"฿105,600.00"}},{"$f":"SUBTOTAL(109,รายละเอียด[ทนายด้านทรัพย์สินทางปัญญา 2])","v":{"v":34650,"d":"฿34,650.00"}},{"$f":"SUBTOTAL(109,รายละเอียด[ทนายด้านการล้มละลาย 2])","v":{"v":0,"d":"฿0.00"}},{"$f":"SUBTOTAL(109,รายละเอียด[เจ้าหน้าที่ธุรการ 2])","v":{"v":67000,"d":"฿67,000.00"}}]
[null,"ชั่วโมงที่วางแผนไว้",{"$f":"C16/$C$12","v":{"v":225,"d":"225.00"}},{"$f":"D16/$C$12","v":{"v":189.28571428571428,"d":"189.29"}},{"v":300,"d":"300.00"},{"v":102.14285714285714,"d":"102.14"},{"v":0,"d":"0.00"},{"v":189.28571428571428,"d":"189.29"}]
[null,"ชั่วโมงจริง",{"$f":"C17/$C$12","v":{"v":226.5,"d":"226.50"}},{"$f":"D17/$C$12","v":{"v":192.5,"d":"192.50"}},{"$f":"E17/$C$12","v":{"v":301.7142857142857,"d":"301.71"}},{"$f":"F17/$C$12","v":{"v":99,"d":"99.00"}},{"$f":"G17/$C$12","v":{"v":0,"d":"0.00"}},{"$f":"H17/$C$12","v":{"v":191.42857142857142,"d":"191.43"}}]

{"sheet":"รายละเอียดโครงการ","index":2,"n_rows":10,"n_cols":25,"rows_kept":10,"merged":[[1,24,8,28]]}
["สร้างรายละเอียดโครงการในเวิร์กชีตนี้ ชื่อบริษัทจะถูกอัปเดตในเซลล์ทางด้านขวาโดยอัตโนมัติ คำแนะนำที่มีประโยชน์จะอยู่ในเซลล์ในคอลัมน์นี้ ใช้ลูกศรลงเพื่อเริ่มต้นใช้งาน",{"$f":"พารามิเตอร์ของโครงการ!B1","v":"ชื่อบริษัท"}]
["ชื่อเรื่องของเวิร์กชีตนี้อยู่ในเซลล์ด้านขวาและเคล็ดลับข้อมูลจะอยู่ในเซลล์ Y2",{"$f":"พารามิเตอร์ของโครงการ!B2","v":"การวางแผนโครงการสำหรับสำนักงานทนายความ"},{"$nulls":22},"ข้อมูล:\nเมื่อต้องการเพิ่มแถว ให้เลือกเซลล์ที่อยู่ขวาล่างสุดในเนื้อหาของตาราง (ไม่ใช่แถวผลรวม) แล้วกด Tab หรือกดแป้น SHIFT จากนั้นกด F10 ภายในตารางที่คุณต้อการงแทรกแถว แล้วเลือกแทรก | แถวตารางด้านบน/ด้านล่าง\nตรวจสอบให้แน่ใจว่าได้ลบแถวที่ไม่ได้ใช้งานทั้งหมดแล้วเนื่องจาก PivotTable ผลรวมของโครงการจะใช้เซลล์ตารางทั้งหมด มิฉะนั้นจะให้ผลลัพธ์ที่มีข้อผิดพลาด"]
["ข้อความที่เป็นความลับจะอยู่ในเซลล์ด้านขวา",{"$f":"พารามิเตอร์ของโครงการ!B3","v":"ชื่อบริษัทที่เป็นความลับ"}]
["ใส่ข้อมูลในตารางรายละเอียดโดยเริ่มจากเซลล์ด้านขวา ชนิดโครงการในตารางรายละเอียดทางด้านขวาจะอัปเดตจากตารางพารามิเตอร์ในเวิร์กชีตพารามิเตอร์โครงการโดยอัตโนมัติ","ชื่อโครงการ","ชนิดโครงการ","เวลาเริ่มต้นโดยประมาณ","เวลาเสร็จสิ้นโดยประมาณ","เวลาเริ่มตามจริง","เวลาสิ้นสุดตามจริง","งานโดยประมาณ","งานที่ทำไปแล้ว","ระยะเวลาโดยประมาณ","ระยะเวลาจริง","คู่ค้าทั่วไป","ทนายความด้านธุรกิจ","ทนายฝ่ายจำเลย","ทนายด้านทรัพย์สินทางปัญญา","ทนายด้านการล้มละลาย","เจ้าหน้าที่ธุรการ","คู่ค้าทั่วไป 2","ทนายความด้านธุรกิจ 2","ทนายฝ่ายจำเลย 2","ทนายด้านทรัพย์สินทางปัญญา 2","ทนายด้านการล้มละลาย 2","เจ้าหน้าที่ธุรการ 2"]
[null,"โครงการ 1","การรวมธุรกิจ",{"$f":"TODAY()","v":"2019-02-18"},{"$f":"TODAY()+60","v":"2019-04-19"},{"$f":"TODAY()+10","v":"2019-02-28"},{"$f":"TODAY()+65","v":"2019-04-24"},200,220,{"$f":"DAYS360(รายละเอียด[[#This Row],[เวลาเริ่มต้นโดยประมาณ]],รายละเอียด[[#This Row],[เวลาเสร็จสิ้นโดยประมาณ]],FALSE)","v":61},{"$f":"DAYS360(รายละเอียด[[#This Row],[เวลาเริ่มตามจริง]],รายละเอียด[[#This Row],[เวลาสิ้นสุดตามจริง]],FALSE)","v":54},{"$f":"INDEX(พารามิเตอร์[],MATCH(รายละเอียด[[#This Row],[ชนิดโครงการ]],พารามิเตอร์[ชนิดโครงการ],0),MATCH(รายละเอียด[[#Headers],[คู่ค้าทั่วไป]],พารามิเตอร์[#Headers],0))*INDEX(พารามิเตอร์ของโครงการ!$B$12:$H$12,1,MATCH(รายละเอียด[[#Headers],[คู่ค้าทั่วไป]],พารามิเตอร์[#Headers],0))*รายละเอียด[[#This Row],[งานโดยประมาณ]]","v":{"v":7000,"d":"฿7,000"}},{"$f":"INDEX(พารามิเตอร์[],MATCH(รายละเอียด[[#This Row],[ชนิดโครงการ]],พารามิเตอร์[ชนิดโครงการ],0),MATCH(รายละเอียด[[#Headers],[ทนายความด้านธุรกิจ]],พารามิเตอร์[#Headers],0))*INDEX(พารามิเตอร์ของโครงการ!$B$12:$H$12,1,MATCH(รายละเอียด[[#Headers],[ทนายความด้านธุรกิจ]],พารามิเตอร์[#Headers],0))*รายละเอียด[[#This Row],[งานโดยประมาณ]]","v":{"v":20000,"d":"฿20,000"}},{"$f":"INDEX(พารามิเตอร์[],MATCH(รายละเอียด[[#This Row],[ชนิดโครงการ]],พารามิเตอร์[ชนิดโครงการ],0),MATCH(รายละเอียด[[#Headers],[ทนายฝ่ายจำเลย]],พารามิเตอร์[#Headers],0))*INDEX(พารามิเตอร์ของโครงการ!$B$12:$H$12,1,MATCH(รายละเอียด[[#Headers],[ทนายฝ่ายจำเลย]],พารามิเตอร์[#Headers],0))*รายละเอียด[[#This Row],[งานโดยประมาณ]]","v":{"v":0,"d":"฿0"}},{"$f":"INDEX(พารามิเตอร์[],MATCH(รายละเอียด[[#This Row],[ชนิดโครงการ]],พารามิเตอร์[ชนิดโครงการ],0),MATCH(รายละเอียด[[#Headers],[ทนายด้านทรัพย์สินทางปัญญา]],พารามิเตอร์[#Headers],0))*INDEX(พารามิเตอร์ของโครงการ!$B$12:$H$12,1,MATCH(รายละเอียด[[#Headers],[ทนายด้านทรัพย์สินทางปัญญา]],พารามิเตอร์[#Headers],0))*รายละเอียด[[#This Row],[งานโดยประมาณ]]","v":{"v":0,"d":"฿0"}},{"$f":"INDEX(พารามิเตอร์[],MATCH(รายละเอียด[[#This Row],[ชนิดโครงการ]],พารามิเตอร์[ชนิดโครงการ],0),MATCH(รายละเอียด[[#Headers],[ทนายด้านการล้มละลาย]],พารามิเตอร์[#Headers],0))*INDEX(พารามิเตอร์ของโครงการ!$B$12:$H$12,1,MATCH(รายละเอียด[[#Headers],[ทนายด้านการล้มละลาย]],พารามิเตอร์[#Headers],0))*รายละเอียด[[#This Row],[งานโดยประมาณ]]","v":{"v":0,"d":"฿0"}},{"$f":"INDEX(พารามิเตอร์[],MATCH(รายละเอียด[[#This Row],[ชนิดโครงการ]],พารามิเตอร์[ชนิดโครงการ],0),MATCH(รายละเอียด[[#Headers],[เจ้าหน้าที่ธุรการ]],พารามิเตอร์[#Headers],0))*INDEX(พารามิเตอร์ของโครงการ!$B$12:$H$12,1,MATCH(รายละเอียด[[#Headers],[เจ้าหน้าที่ธุรการ]],พารามิเตอร์[#Headers],0))*รายละเอียด[[#This Row],[งานโดยประมาณ]]","v":{"v":12500,"d":"฿12,500"}},{"$f":"INDEX(พารามิเตอร์[],MATCH(รายละเอียด[[#This Row],[ชนิดโครงการ]],พารามิเตอร์[ชนิดโครงการ],0),MATCH(รายละเอียด[[#Headers],[คู่ค้าทั่วไป]],พารามิเตอร์[#Headers],0))*INDEX(พารามิเตอร์ของโครงการ!$B$12:$H$12,1,MATCH(รายละเอียด[[#Headers],[คู่ค้าทั่วไป]],พารามิเตอร์[#Headers],0))*รายละเอียด[[#This Row],[งานที่ทำไปแล้ว]]","v":{"v":7700,"d":"฿7,700"}},{"$f":"INDEX(พารามิเตอร์[],MATCH(รายละเอียด[[#This Row],[ชนิดโครงการ]],พารามิเตอร์[ชนิดโครงการ],0),MATCH(รายละเอียด[[#Headers],[ทนายความด้านธุรกิจ]],พารามิเตอร์[#Headers],0))*INDEX(พารามิเตอร์ของโครงการ!$B$12:$H$12,1,MATCH(รายละเอียด[[#Headers],[ทนายความด้านธุรกิจ]],พารามิเตอร์[#Headers],0))*รายละเอียด[[#This Row],[งานที่ทำไปแล้ว]]","v":{"v":22000,"d":"฿22,000"}},{"$f":"INDEX(พารามิเตอร์[],MATCH(รายละเอียด[[#This Row],[ชนิดโครงการ]],พารามิเตอร์[ชนิดโครงการ],0),MATCH(รายละเอียด[[#Headers],[ทนายฝ่ายจำเลย]],พารามิเตอร์[#Headers],0))*INDEX(พารามิเตอร์ของโครงการ!$B$12:$H$12,1,MATCH(รายละเอียด[[#Headers],[ทนายฝ่ายจำเลย]],พารามิเตอร์[#Headers],0))*รายละเอียด[[#This Row],[งานที่ทำไปแล้ว]]","v":{"v":0,"d":"฿0"}},{"$f":"INDEX(พารามิเตอร์[],MATCH(รายละเอียด[[#This Row],[ชนิดโครงการ]],พารามิเตอร์[ชนิดโครงการ],0),MATCH(รายละเอียด[[#Headers],[ทนายด้านทรัพย์สินทางปัญญา]],พารามิเตอร์[#Headers],0))*INDEX(พารามิเตอร์ของโครงการ!$B$12:$H$12,1,MATCH(รายละเอียด[[#Headers],[ทนายด้านทรัพย์สินทางปัญญา]],พารามิเตอร์[#Headers],0))*รายละเอียด[[#This Row],[งานที่ทำไปแล้ว]]","v":{"v":0,"d":"฿0"}},{"$f":"INDEX(พารามิเตอร์[],MATCH(รายละเอียด[[#This Row],[ชนิดโครงการ]],พารามิเตอร์[ชนิดโครงการ],0),MATCH(รายละเอียด[[#Headers],[ทนายด้านการล้มละลาย]],พารามิเตอร์[#Headers],0))*INDEX(พารามิเตอร์ของโครงการ!$B$12:$H$12,1,MATCH(รายละเอียด[[#Headers],[ทนายด้านการล้มละลาย]],พารามิเตอร์[#Headers],0))*รายละเอียด[[#This Row],[งานที่ทำไปแล้ว]]","v":{"v":0,"d":"฿0"}},{"$f":"INDEX(พารามิเตอร์[],MATCH(รายละเอียด[[#This Row],[ชนิดโครงการ]],พารามิเตอร์[ชนิดโครงการ],0),MATCH(รายละเอียด[[#Headers],[เจ้าหน้าที่ธุรการ]],พารามิเตอร์[#Headers],0))*INDEX(พารามิเตอร์ของโครงการ!$B$12:$H$12,1,MATCH(รายละเอียด[[#Headers],[เจ้าหน้าที่ธุรการ]],พารามิเตอร์[#Headers],0))*รายละเอียด[[#This Row],[งานที่ทำไปแล้ว]]","v":{"v":13750,"d":"฿13,750"}}]
[null,"โครงการ 2","การเข้าซื้อธุรกิจ",{"$f":"TODAY()+30","v":"2019-03-20"},{"$f":"TODAY()+100","v":"2019-05-29"},{"$f":"TODAY()+40","v":"2019-03-30"},{"$f":"TODAY()+110","v":"2019-06-08"},400,390,{"$f":"DAYS360(รายละเอียด[[#This Row],[เวลาเริ่มต้นโดยประมาณ]],รายละเอียด[[#This Row],[เวลาเสร็จสิ้นโดยประมาณ]],FALSE)","v":69},{"$f":"DAYS360(รายละเอียด[[#This Row],[เวลาเริ่มตามจริง]],รายละเอียด[[#This Row],[เวลาสิ้นสุดตามจริง]],FALSE)","v":68},{"$f":"INDEX(พารามิเตอร์[],MATCH(รายละเอียด[[#This Row],[ชนิดโครงการ]],พารามิเตอร์[ชนิดโครงการ],0),MATCH(รายละเอียด[[#Headers],[คู่ค้าทั่วไป]],พารามิเตอร์[#Headers],0))*INDEX(พารามิเตอร์ของโครงการ!$B$12:$H$12,1,MATCH(รายละเอียด[[#Headers],[คู่ค้าทั่วไป]],พารามิเตอร์[#Headers],0))*รายละเอียด[[#This Row],[งานโดยประมาณ]]","v":{"v":14000,"d":"฿14,000"}},{"$f":"INDEX(พารามิเตอร์[],MATCH(รายละเอียด[[#This Row],[ชนิดโครงการ]],พารามิเตอร์[ชนิดโครงการ],0),MATCH(รายละเอียด[[#Headers],[ทนายความด้านธุรกิจ]],พารามิเตอร์[#Headers],0))*INDEX(พารามิเตอร์ของโครงการ!$B$12:$H$12,1,MATCH(รายละเอียด[[#Headers],[ทนายความด้านธุรกิจ]],พารามิเตอร์[#Headers],0))*รายละเอียด[[#This Row],[งานโดยประมาณ]]","v":{"v":40000,"d":"฿40,000"}},{"$f":"INDEX(พารามิเตอร์[],MATCH(รายละเอียด[[#This Row],[ชนิดโครงการ]],พารามิเตอร์[ชนิดโครงการ],0),MATCH(รายละเอียด[[#Headers],[ทนายฝ่ายจำเลย]],พารามิเตอร์[#Headers],0))*INDEX(พารามิเตอร์ของโครงการ!$B$12:$H$12,1,MATCH(รายละเอียด[[#Headers],[ทนายฝ่ายจำเลย]],พารามิเตอร์[#Headers],0))*รายละเอียด[[#This Row],[งานโดยประมาณ]]","v":{"v":0,"d":"฿0"}},{"$f":"INDEX(พารามิเตอร์[],MATCH(รายละเอียด[[#This Row],[ชนิดโครงการ]],พารามิเตอร์[ชนิดโครงการ],0),MATCH(รายละเอียด[[#Headers],[ทนายด้านทรัพย์สินทางปัญญา]],พารามิเตอร์[#Headers],0))*INDEX(พารามิเตอร์ของโครงการ!$B$12:$H$12,1,MATCH(รายละเอียด[[#Headers],[ทนายด้านทรัพย์สินทางปัญญา]],พารามิเตอร์[#Headers],0))*รายละเอียด[[#This Row],[งานโดยประมาณ]]","v":{"v":11000,"d":"฿11,000"}},{"$f":"INDEX(พารามิเตอร์[],MATCH(รายละเอียด[[#This Row],[ชนิดโครงการ]],พารามิเตอร์[ชนิดโครงการ],0),MATCH(รายละเอียด[[#Headers],[ทนายด้านการล้มละลาย]],พารามิเตอร์[#Headers],0))*INDEX(พารามิเตอร์ของโครงการ!$B$12:$H$12,1,MATCH(รายละเอียด[[#Headers],[ทนายด้านการล้มละลาย]],พารามิเตอร์[#Headers],0))*รายละเอียด[[#This Row],[งานโดยประมาณ]]","v":{"v":0,"d":"฿0"}},{"$f":"INDEX(พารามิเตอร์[],MATCH(รายละเอียด[[#This Row],[ชนิดโครงการ]],พารามิเตอร์[ชนิดโครงการ],0),MATCH(รายละเอียด[[#Headers],[เจ้าหน้าที่ธุรการ]],พารามิเตอร์[#Headers],0))*INDEX(พารามิเตอร์ของโครงการ!$B$12:$H$12,1,MATCH(รายละเอียด[[#Headers],[เจ้าหน้าที่ธุรการ]],พารามิเตอร์[#Headers],0))*รายละเอียด[[#This Row],[งานโดยประมาณ]]","v":{"v":20000,"d":"฿20,000"}},{"$f":"INDEX(พารามิเตอร์[],MATCH(รายละเอียด[[#This Row],[ชนิดโครงการ]],พารามิเตอร์[ชนิดโครงการ],0),MATCH(รายละเอียด[[#Headers],[คู่ค้าทั่วไป]],พารามิเตอร์[#Headers],0))*INDEX(พารามิเตอร์ของโครงการ!$B$12:$H$12,1,MATCH(รายละเอียด[[#Headers],[คู่ค้าทั่วไป]],พารามิเตอร์[#Headers],0))*รายละเอียด[[#This Row],[งานที่ทำไปแล้ว]]","v":{"v":13650,"d":"฿13,650"}},{"$f":"INDEX(พารามิเตอร์[],MATCH(รายละเอียด[[#This Row],[ชนิดโครงการ]],พารามิเตอร์[ชนิดโครงการ],0),MATCH(รายละเอียด[[#Headers],[ทนายความด้านธุรกิจ]],พารามิเตอร์[#Headers],0))*INDEX(พารามิเตอร์ของโครงการ!$B$12:$H$12,1,MATCH(รายละเอียด[[#Headers],[ทนายความด้านธุรกิจ]],พารามิเตอร์[#Headers],0))*รายละเอียด[[#This Row],[งานที่ทำไปแล้ว]]","v":{"v":39000,"d":"฿39,000"}},{"$f":"INDEX(พารามิเตอร์[],MATCH(รายละเอียด[[#This Row],[ชนิดโครงการ]],พารามิเตอร์[ชนิดโครงการ],0),MATCH(รายละเอียด[[#Headers],[ทนายฝ่ายจำเลย]],พารามิเตอร์[#Headers],0))*INDEX(พารามิเตอร์ของโครงการ!$B$12:$H$12,1,MATCH(รายละเอียด[[#Headers],[ทนายฝ่ายจำเลย]],พารามิเตอร์[#Headers],0))*รายละเอียด[[#This Row],[งานที่ทำไปแล้ว]]","v":{"v":0,"d":"฿0"}},{"$f":"INDEX(พารามิเตอร์[],MATCH(รายละเอียด[[#This Row],[ชนิดโครงการ]],พารามิเตอร์[ชนิดโครงการ],0),MATCH(รายละเอียด[[#Headers],[ทนายด้านทรัพย์สินทางปัญญา]],พารามิเตอร์[#Headers],0))*INDEX(พารามิเตอร์ของโครงการ!$B$12:$H$12,1,MATCH(รายละเอียด[[#Headers],[ทนายด้านทรัพย์สินทางปัญญา]],พารามิเตอร์[#Headers],0))*รายละเอียด[[#This Row],[งานที่ทำไปแล้ว]]","v":{"v":10725,"d":"฿10,725"}},{"$f":"INDEX(พารามิเตอร์[],MATCH(รายละเอียด[[#This Row],[ชนิดโครงการ]],พารามิเตอร์[ชนิดโครงการ],0),MATCH(รายละเอียด[[#Headers],[ทนายด้านการล้มละลาย]],พารามิเตอร์[#Headers],0))*INDEX(พารามิเตอร์ของโครงการ!$B$12:$H$12,1,MATCH(รายละเอียด[[#Headers],[ทนายด้านการล้มละลาย]],พารามิเตอร์[#Headers],0))*รายละเอียด[[#This Row],[งานที่ทำไปแล้ว]]","v":{"v":0,"d":"฿0"}},{"$f":"INDEX(พารามิเตอร์[],MATCH(รายละเอียด[[#This Row],[ชนิดโครงการ]],พารามิเตอร์[ชนิดโครงการ],0),MATCH(รายละเอียด[[#Headers],[เจ้าหน้าที่ธุรการ]],พารามิเตอร์[#Headers],0))*INDEX(พารามิเตอร์ของโครงการ!$B$12:$H$12,1,MATCH(รายละเอียด[[#Headers],[เจ้าหน้าที่ธุรการ]],พารามิเตอร์[#Headers],0))*รายละเอียด[[#This Row],[งานที่ทำไปแล้ว]]","v":{"v":19500,"d":"฿19,500"}}]
[null,"โครงการ 3","การป้องกันความรับผิดชอบต่อผลิตภัณฑ์",{"$f":"TODAY()+150","v":"2019-07-18"},{"$f":"TODAY()+150","v":"2019-07-18"},{"$f":"TODAY()+150","v":"2019-07-18"},{"$f":"TODAY()+170","v":"2019-08-07"},500,500,{"$f":"DAYS360(รายละเอียด[[#This Row],[เวลาเริ่มต้นโดยประมาณ]],รายละเอียด[[#This Row],[เวลาเสร็จสิ้นโดยประมาณ]],FALSE)","v":0},{"$f":"DAYS360(รายละเอียด[[#This Row],[เวลาเริ่มตามจริง]],รายละเอียด[[#This Row],[เวลาสิ้นสุดตามจริง]],FALSE)","v":19},{"$f":"INDEX(พารามิเตอร์[],MATCH(รายละเอียด[[#This Row],[ชนิดโครงการ]],พารามิเตอร์[ชนิดโครงการ],0),MATCH(รายละเอียด[[#Headers],[คู่ค้าทั่วไป]],พารามิเตอร์[#Headers],0))*INDEX(พารามิเตอร์ของโครงการ!$B$12:$H$12,1,MATCH(รายละเอียด[[#Headers],[คู่ค้าทั่วไป]],พารามิเตอร์[#Headers],0))*รายละเอียด[[#This Row],[งานโดยประมาณ]]","v":{"v":35000,"d":"฿35,000"}},{"$f":"INDEX(พารามิเตอร์[],MATCH(รายละเอียด[[#This Row],[ชนิดโครงการ]],พารามิเตอร์[ชนิดโครงการ],0),MATCH(รายละเอียด[[#Headers],[ทนายความด้านธุรกิจ]],พารามิเตอร์[#Headers],0))*INDEX(พารามิเตอร์ของโครงการ!$B$12:$H$12,1,MATCH(รายละเอียด[[#Headers],[ทนายความด้านธุรกิจ]],พารามิเตอร์[#Headers],0))*รายละเอียด[[#This Row],[งานโดยประมาณ]]","v":{"v":0,"d":"฿0"}},{"$f":"INDEX(พารามิเตอร์[],MATCH(รายละเอียด[[#This Row],[ชนิดโครงการ]],พารามิเตอร์[ชนิดโครงการ],0),MATCH(รายละเอียด[[#Headers],[ทนายฝ่ายจำเลย]],พารามิเตอร์[#Headers],0))*INDEX(พารามิเตอร์ของโครงการ!$B$12:$H$12,1,MATCH(รายละเอียด[[#Headers],[ทนายฝ่ายจำเลย]],พารามิเตอร์[#Headers],0))*รายละเอียด[[#This Row],[งานโดยประมาณ]]","v":{"v":75000,"d":"฿75,000"}},{"$f":"INDEX(พารามิเตอร์[],MATCH(รายละเอียด[[#This Row],[ชนิดโครงการ]],พารามิเตอร์[ชนิดโครงการ],0),MATCH(รายละเอียด[[#Headers],[ทนายด้านทรัพย์สินทางปัญญา]],พารามิเตอร์[#Headers],0))*INDEX(พารามิเตอร์ของโครงการ!$B$12:$H$12,1,MATCH(รายละเอียด[[#Headers],[ทนายด้านทรัพย์สินทางปัญญา]],พารามิเตอร์[#Headers],0))*รายละเอียด[[#This Row],[งานโดยประมาณ]]","v":{"v":0,"d":"฿0"}},{"$f":"INDEX(พารามิเตอร์[],MATCH(รายละเอียด[[#This Row],[ชนิดโครงการ]],พารามิเตอร์[ชนิดโครงการ],0),MATCH(รายละเอียด[[#Headers],[ทนายด้านการล้มละลาย]],พารามิเตอร์[#Headers],0))*INDEX(พารามิเตอร์ของโครงการ!$B$12:$H$12,1,MATCH(รายละเอียด[[#Headers],[ทนายด้านการล้มละลาย]],พารามิเตอร์[#Headers],0))*รายละเอียด[[#This Row],[งานโดยประมาณ]]","v":{"v":0,"d":"฿0"}},{"$f":"INDEX(พารามิเตอร์[],MATCH(รายละเอียด[[#This Row],[ชนิดโครงการ]],พารามิเตอร์[ชนิดโครงการ],0),MATCH(รายละเอียด[[#Headers],[เจ้าหน้าที่ธุรการ]],พารามิเตอร์[#Headers],0))*INDEX(พารามิเตอร์ของโครงการ!$B$12:$H$12,1,MATCH(รายละเอียด[[#Headers],[เจ้าหน้าที่ธุรการ]],พารามิเตอร์[#Headers],0))*รายละเอียด[[#This Row],[งานโดยประมาณ]]","v":{"v":18750,"d":"฿18,750"}},{"$f":"INDEX(พารามิเตอร์[],MATCH(รายละเอียด[[#This Row],[ชนิดโครงการ]],พารามิเตอร์[ชนิดโครงการ],0),MATCH(รายละเอียด[[#Headers],[คู่ค้าทั่วไป]],พารามิเตอร์[#Headers],0))*INDEX(พารามิเตอร์ของโครงการ!$B$12:$H$12,1,MATCH(รายละเอียด[[#Headers],[คู่ค้าทั่วไป]],พารามิเตอร์[#Headers],0))*รายละเอียด[[#This Row],[งานที่ทำไปแล้ว]]","v":{"v":35000,"d":"฿35,000"}},{"$f":"INDEX(พารามิเตอร์[],MATCH(รายละเอียด[[#This Row],[ชนิดโครงการ]],พารามิเตอร์[ชนิดโครงการ],0),MATCH(รายละเอียด[[#Headers],[ทนายความด้านธุรกิจ]],พารามิเตอร์[#Headers],0))*INDEX(พารามิเตอร์ของโครงการ!$B$12:$H$12,1,MATCH(รายละเอียด[[#Headers],[ทนายความด้านธุรกิจ]],พารามิเตอร์[#Headers],0))*รายละเอียด[[#This Row],[งานที่ทำไปแล้ว]]","v":{"v":0,"d":"฿0"}},{"$f":"INDEX(พารามิเตอร์[],MATCH(รายละเอียด[[#This Row],[ชนิดโครงการ]],พารามิเตอร์[ชนิดโครงการ],0),MATCH(รายละเอียด[[#Headers],[ทนายฝ่ายจำเลย]],พารามิเตอร์[#Headers],0))*INDEX(พารามิเตอร์ของโครงการ!$B$12:$H$12,1,MATCH(รายละเอียด[[#Headers],[ทนายฝ่ายจำเลย]],พารามิเตอร์[#Headers],0))*รายละเอียด[[#This Row],[งานที่ทำไปแล้ว]]","v":{"v":75000,"d":"฿75,000"}},{"$f":"INDEX(พารามิเตอร์[],MATCH(รายละเอียด[[#This Row],[ชนิดโครงการ]],พารามิเตอร์[ชนิดโครงการ],0),MATCH(รายละเอียด[[#Headers],[ทนายด้านทรัพย์สินทางปัญญา]],พารามิเตอร์[#Headers],0))*INDEX(พารามิเตอร์ของโครงการ!$B$12:$H$12,1,MATCH(รายละเอียด[[#Headers],[ทนายด้านทรัพย์สินทางปัญญา]],พารามิเตอร์[#Headers],0))*รายละเอียด[[#This Row],[งานที่ทำไปแล้ว]]","v":{"v":0,"d":"฿0"}},{"$f":"INDEX(พารามิเตอร์[],MATCH(รายละเอียด[[#This Row],[ชนิดโครงการ]],พารามิเตอร์[ชนิดโครงการ],0),MATCH(รายละเอียด[[#Headers],[ทนายด้านการล้มละลาย]],พารามิเตอร์[#Headers],0))*INDEX(พารามิเตอร์ของโครงการ!$B$12:$H$12,1,MATCH(รายละเอียด[[#Headers],[ทนายด้านการล้มละลาย]],พารามิเตอร์[#Headers],0))*รายละเอียด[[#This Row],[งานที่ทำไปแล้ว]]","v":{"v":0,"d":"฿0"}},{"$f":"INDEX(พารามิเตอร์[],MATCH(รายละเอียด[[#This Row],[ชนิดโครงการ]],พารามิเตอร์[ชนิดโครงการ],0),MATCH(รายละเอียด[[#Headers],[เจ้าหน้าที่ธุรการ]],พารามิเตอร์[#Headers],0))*INDEX(พารามิเตอร์ของโครงการ!$B$12:$H$12,1,MATCH(รายละเอียด[[#Headers],[เจ้าหน้าที่ธุรการ]],พารามิเตอร์[#Headers],0))*รายละเอียด[[#This Row],[งานที่ทำไปแล้ว]]","v":{"v":18750,"d":"฿18,750"}}]
[null,"โครงการ 4","การยื่นขอรับสิทธิบัตร",{"$f":"TODAY()+200","v":"2019-09-06"},{"$f":"TODAY()+230","v":"2019-10-06"},{"$f":"TODAY()+230","v":"2019-10-06"},{"$f":"TODAY()+230","v":"2019-10-06"},150,145,{"$f":"DAYS360(รายละเอียด[[#This Row],[เวลาเริ่มต้นโดยประมาณ]],รายละเอียด[[#This Row],[เวลาเสร็จสิ้นโดยประมาณ]],FALSE)","v":30},{"$f":"DAYS360(รายละเอียด[[#This Row],[เวลาเริ่มตามจริง]],รายละเอียด[[#This Row],[เวลาสิ้นสุดตามจริง]],FALSE)","v":0},{"$f":"INDEX(พารามิเตอร์[],MATCH(รายละเอียด[[#This Row],[ชนิดโครงการ]],พารามิเตอร์[ชนิดโครงการ],0),MATCH(รายละเอียด[[#Headers],[คู่ค้าทั่วไป]],พารามิเตอร์[#Headers],0))*INDEX(พารามิเตอร์ของโครงการ!$B$12:$H$12,1,MATCH(รายละเอียด[[#Headers],[คู่ค้าทั่วไป]],พารามิเตอร์[#Headers],0))*รายละเอียด[[#This Row],[งานโดยประมาณ]]","v":{"v":5250,"d":"฿5,250"}},{"$f":"INDEX(พารามิเตอร์[],MATCH(รายละเอียด[[#This Row],[ชนิดโครงการ]],พารามิเตอร์[ชนิดโครงการ],0),MATCH(รายละเอียด[[#Headers],[ทนายความด้านธุรกิจ]],พารามิเตอร์[#Headers],0))*INDEX(พารามิเตอร์ของโครงการ!$B$12:$H$12,1,MATCH(รายละเอียด[[#Headers],[ทนายความด้านธุรกิจ]],พารามิเตอร์[#Headers],0))*รายละเอียด[[#This Row],[งานโดยประมาณ]]","v":{"v":0,"d":"฿0"}},{"$f":"INDEX(พารามิเตอร์[],MATCH(รายละเอียด[[#This Row],[ชนิดโครงการ]],พารามิเตอร์[ชนิดโครงการ],0),MATCH(รายละเอียด[[#Headers],[ทนายฝ่ายจำเลย]],พารามิเตอร์[#Headers],0))*INDEX(พารามิเตอร์ของโครงการ!$B$12:$H$12,1,MATCH(รายละเอียด[[#Headers],[ทนายฝ่ายจำเลย]],พารามิเตอร์[#Headers],0))*รายละเอียด[[#This Row],[งานโดยประมาณ]]","v":{"v":0,"d":"฿0"}},{"$f":"INDEX(พารามิเตอร์[],MATCH(รายละเอียด[[#This Row],[ชนิดโครงการ]],พารามิเตอร์[ชนิดโครงการ],0),MATCH(รายละเอียด[[#Headers],[ทนายด้านทรัพย์สินทางปัญญา]],พารามิเตอร์[#Headers],0))*INDEX(พารามิเตอร์ของโครงการ!$B$12:$H$12,1,MATCH(รายละเอียด[[#Headers],[ทนายด้านทรัพย์สินทางปัญญา]],พารามิเตอร์[#Headers],0))*รายละเอียด[[#This Row],[งานโดยประมาณ]]","v":{"v":24750,"d":"฿24,750"}},{"$f":"INDEX(พารามิเตอร์[],MATCH(รายละเอียด[[#This Row],[ชนิดโครงการ]],พารามิเตอร์[ชนิดโครงการ],0),MATCH(รายละเอียด[[#Headers],[ทนายด้านการล้มละลาย]],พารามิเตอร์[#Headers],0))*INDEX(พารามิเตอร์ของโครงการ!$B$12:$H$12,1,MATCH(รายละเอียด[[#Headers],[ทนายด้านการล้มละลาย]],พารามิเตอร์[#Headers],0))*รายละเอียด[[#This Row],[งานโดยประมาณ]]","v":{"v":0,"d":"฿0"}},{"$f":"INDEX(พารามิเตอร์[],MATCH(รายละเอียด[[#This Row],[ชนิดโครงการ]],พารามิเตอร์[ชนิดโครงการ],0),MATCH(รายละเอียด[[#Headers],[เจ้าหน้าที่ธุรการ]],พารามิเตอร์[#Headers],0))*INDEX(พารามิเตอร์ของโครงการ!$B$12:$H$12,1,MATCH(รายละเอียด[[#Headers],[เจ้าหน้าที่ธุรการ]],พารามิเตอร์[#Headers],0))*รายละเอียด[[#This Row],[งานโดยประมาณ]]","v":{"v":5625,"d":"฿5,625"}},{"$f":"INDEX(พารามิเตอร์[],MATCH(รายละเอียด[[#This Row],[ชนิดโครงการ]],พารามิเตอร์[ชนิดโครงการ],0),MATCH(รายละเอียด[[#Headers],[คู่ค้าทั่วไป]],พารามิเตอร์[#Headers],0))*INDEX(พารามิเตอร์ของโครงการ!$B$12:$H$12,1,MATCH(รายละเอียด[[#Headers],[คู่ค้าทั่วไป]],พารามิเตอร์[#Headers],0))*รายละเอียด[[#This Row],[งานที่ทำไปแล้ว]]","v":{"v":5075,"d":"฿5,075"}},{"$f":"INDEX(พารามิเตอร์[],MATCH(รายละเอียด[[#This Row],[ชนิดโครงการ]],พารามิเตอร์[ชนิดโครงการ],0),MATCH(รายละเอียด[[#Headers],[ทนายความด้านธุรกิจ]],พารามิเตอร์[#Headers],0))*INDEX(พารามิเตอร์ของโครงการ!$B$12:$H$12,1,MATCH(รายละเอียด[[#Headers],[ทนายความด้านธุรกิจ]],พารามิเตอร์[#Headers],0))*รายละเอียด[[#This Row],[งานที่ทำไปแล้ว]]","v":{"v":0,"d":"฿0"}},{"$f":"INDEX(พารามิเตอร์[],MATCH(รายละเอียด[[#This Row],[ชนิดโครงการ]],พารามิเตอร์[ชนิดโครงการ],0),MATCH(รายละเอียด[[#Headers],[ทนายฝ่ายจำเลย]],พารามิเตอร์[#Headers],0))*INDEX(พารามิเตอร์ของโครงการ!$B$12:$H$12,1,MATCH(รายละเอียด[[#Headers],[ทนายฝ่ายจำเลย]],พารามิเตอร์[#Headers],0))*รายละเอียด[[#This Row],[งานที่ทำไปแล้ว]]","v":{"v":0,"d":"฿0"}},{"$f":"INDEX(พารามิเตอร์[],MATCH(รายละเอียด[[#This Row],[ชนิดโครงการ]],พารามิเตอร์[ชนิดโครงการ],0),MATCH(รายละเอียด[[#Headers],[ทนายด้านทรัพย์สินทางปัญญา]],พารามิเตอร์[#Headers],0))*INDEX(พารามิเตอร์ของโครงการ!$B$12:$H$12,1,MATCH(รายละเอียด[[#Headers],[ทนายด้านทรัพย์สินทางปัญญา]],พารามิเตอร์[#Headers],0))*รายละเอียด[[#This Row],[งานที่ทำไปแล้ว]]","v":{"v":23925,"d":"฿23,925"}},{"$f":"INDEX(พารามิเตอร์[],MATCH(รายละเอียด[[#This Row],[ชนิดโครงการ]],พารามิเตอร์[ชนิดโครงการ],0),MATCH(รายละเอียด[[#Headers],[ทนายด้านการล้มละลาย]],พารามิเตอร์[#Headers],0))*INDEX(พารามิเตอร์ของโครงการ!$B$12:$H$12,1,MATCH(รายละเอียด[[#Headers],[ทนายด้านการล้มละลาย]],พารามิเตอร์[#Headers],0))*รายละเอียด[[#This Row],[งานที่ทำไปแล้ว]]","v":{"v":0,"d":"฿0"}},{"$f":"INDEX(พารามิเตอร์[],MATCH(รายละเอียด[[#This Row],[ชนิดโครงการ]],พารามิเตอร์[ชนิดโครงการ],0),MATCH(รายละเอียด[[#Headers],[เจ้าหน้าที่ธุรการ]],พารามิเตอร์[#Headers],0))*INDEX(พารามิเตอร์ของโครงการ!$B$12:$H$12,1,MATCH(รายละเอียด[[#Headers],[เจ้าหน้าที่ธุรการ]],พารามิเตอร์[#Headers],0))*รายละเอียด[[#This Row],[งานที่ทำไปแล้ว]]","v":{"v":5437.5,"d":"฿5,438"}}]
[null,"โครงการ 5","คดีความเกี่ยวกับพนักงาน",{"$f":"TODAY()+220","v":"2019-09-26"},{"$f":"TODAY()+250","v":"2019-10-26"},{"$f":"TODAY()+230","v":"2019-10-06"},{"$f":"TODAY()+259","v":"2019-11-04"},250,255,{"$f":"DAYS360(รายละเอียด[[#This Row],[เวลาเริ่มต้นโดยประมาณ]],รายละเอียด[[#This Row],[เวลาเสร็จสิ้นโดยประมาณ]],FALSE)","v":30},{"$f":"DAYS360(รายละเอียด[[#This Row],[เวลาเริ่มตามจริง]],รายละเอียด[[#This Row],[เวลาสิ้นสุดตามจริง]],FALSE)","v":28},{"$f":"INDEX(พารามิเตอร์[],MATCH(รายละเอียด[[#This Row],[ชนิดโครงการ]],พารามิเตอร์[ชนิดโครงการ],0),MATCH(รายละเอียด[[#Headers],[คู่ค้าทั่วไป]],พารามิเตอร์[#Headers],0))*INDEX(พารามิเตอร์ของโครงการ!$B$12:$H$12,1,MATCH(รายละเอียด[[#Headers],[คู่ค้าทั่วไป]],พารามิเตอร์[#Headers],0))*รายละเอียด[[#This Row],[งานโดยประมาณ]]","v":{"v":17500,"d":"฿17,500"}},{"$f":"INDEX(พารามิเตอร์[],MATCH(รายละเอียด[[#This Row],[ชนิดโครงการ]],พารามิเตอร์[ชนิดโครงการ],0),MATCH(รายละเอียด[[#Headers],[ทนายความด้านธุรกิจ]],พารามิเตอร์[#Headers],0))*INDEX(พารามิเตอร์ของโครงการ!$B$12:$H$12,1,MATCH(รายละเอียด[[#Headers],[ทนายความด้านธุรกิจ]],พารามิเตอร์[#Headers],0))*รายละเอียด[[#This Row],[งานโดยประมาณ]]","v":{"v":6250,"d":"฿6,250"}},{"$f":"INDEX(พารามิเตอร์[],MATCH(รายละเอียด[[#This Row],[ชนิดโครงการ]],พารามิเตอร์[ชนิดโครงการ],0),MATCH(รายละเอียด[[#Headers],[ทนายฝ่ายจำเลย]],พารามิเตอร์[#Headers],0))*INDEX(พารามิเตอร์ของโครงการ!$B$12:$H$12,1,MATCH(รายละเอียด[[#Headers],[ทนายฝ่ายจำเลย]],พารามิเตอร์[#Headers],0))*รายละเอียด[[#This Row],[งานโดยประมาณ]]","v":{"v":30000,"d":"฿30,000"}},{"$f":"INDEX(พารามิเตอร์[],MATCH(รายละเอียด[[#This Row],[ชนิดโครงการ]],พารามิเตอร์[ชนิดโครงการ],0),MATCH(รายละเอียด[[#Headers],[ทนายด้านทรัพย์สินทางปัญญา]],พารามิเตอร์[#Headers],0))*INDEX(พารามิเตอร์ของโครงการ!$B$12:$H$12,1,MATCH(รายละเอียด[[#Headers],[ทนายด้านทรัพย์สินทางปัญญา]],พารามิเตอร์[#Headers],0))*รายละเอียด[[#This Row],[งานโดยประมาณ]]","v":{"v":0,"d":"฿0"}},{"$f":"INDEX(พารามิเตอร์[],MATCH(รายละเอียด[[#This Row],[ชนิดโครงการ]],พารามิเตอร์[ชนิดโครงการ],0),MATCH(รายละเอียด[[#Headers],[ทนายด้านการล้มละลาย]],พารามิเตอร์[#Headers],0))*INDEX(พารามิเตอร์ของโครงการ!$B$12:$H$12,1,MATCH(รายละเอียด[[#Headers],[ทนายด้านการล้มละลาย]],พารามิเตอร์[#Headers],0))*รายละเอียด[[#This Row],[งานโดยประมาณ]]","v":{"v":0,"d":"฿0"}},{"$f":"INDEX(พารามิเตอร์[],MATCH(รายละเอียด[[#This Row],[ชนิดโครงการ]],พารามิเตอร์[ชนิดโครงการ],0),MATCH(รายละเอียด[[#Headers],[เจ้าหน้าที่ธุรการ]],พารามิเตอร์[#Headers],0))*INDEX(พารามิเตอร์ของโครงการ!$B$12:$H$12,1,MATCH(รายละเอียด[[#Headers],[เจ้าหน้าที่ธุรการ]],พารามิเตอร์[#Headers],0))*รายละเอียด[[#This Row],[งานโดยประมาณ]]","v":{"v":9375,"d":"฿9,375"}},{"$f":"INDEX(พารามิเตอร์[],MATCH(รายละเอียด[[#This Row],[ชนิดโครงการ]],พารามิเตอร์[ชนิดโครงการ],0),MATCH(รายละเอียด[[#Headers],[คู่ค้าทั่วไป]],พารามิเตอร์[#Headers],0))*INDEX(พารามิเตอร์ของโครงการ!$B$12:$H$12,1,MATCH(รายละเอียด[[#Headers],[คู่ค้าทั่วไป]],พารามิเตอร์[#Headers],0))*รายละเอียด[[#This Row],[งานที่ทำไปแล้ว]]","v":{"v":17850,"d":"฿17,850"}},{"$f":"INDEX(พารามิเตอร์[],MATCH(รายละเอียด[[#This Row],[ชนิดโครงการ]],พารามิเตอร์[ชนิดโครงการ],0),MATCH(รายละเอียด[[#Headers],[ทนายความด้านธุรกิจ]],พารามิเตอร์[#Headers],0))*INDEX(พารามิเตอร์ของโครงการ!$B$12:$H$12,1,MATCH(รายละเอียด[[#Headers],[ทนายความด้านธุรกิจ]],พารามิเตอร์[#Headers],0))*รายละเอียด[[#This Row],[งานที่ทำไปแล้ว]]","v":{"v":6375,"d":"฿6,375"}},{"$f":"INDEX(พารามิเตอร์[],MATCH(รายละเอียด[[#This Row],[ชนิดโครงการ]],พารามิเตอร์[ชนิดโครงการ],0),MATCH(รายละเอียด[[#Headers],[ทนายฝ่ายจำเลย]],พารามิเตอร์[#Headers],0))*INDEX(พารามิเตอร์ของโครงการ!$B$12:$H$12,1,MATCH(รายละเอียด[[#Headers],[ทนายฝ่ายจำเลย]],พารามิเตอร์[#Headers],0))*รายละเอียด[[#This Row],[งานที่ทำไปแล้ว]]","v":{"v":30600,"d":"฿30,600"}},{"$f":"INDEX(พารามิเตอร์[],MATCH(รายละเอียด[[#This Row],[ชนิดโครงการ]],พารามิเตอร์[ชนิดโครงการ],0),MATCH(รายละเอียด[[#Headers],[ทนายด้านทรัพย์สินทางปัญญา]],พารามิเตอร์[#Headers],0))*INDEX(พารามิเตอร์ของโครงการ!$B$12:$H$12,1,MATCH(รายละเอียด[[#Headers],[ทนายด้านทรัพย์สินทางปัญญา]],พารามิเตอร์[#Headers],0))*รายละเอียด[[#This Row],[งานที่ทำไปแล้ว]]","v":{"v":0,"d":"฿0"}},{"$f":"INDEX(พารามิเตอร์[],MATCH(รายละเอียด[[#This Row],[ชนิดโครงการ]],พารามิเตอร์[ชนิดโครงการ],0),MATCH(รายละเอียด[[#Headers],[ทนายด้านการล้มละลาย]],พารามิเตอร์[#Headers],0))*INDEX(พารามิเตอร์ของโครงการ!$B$12:$H$12,1,MATCH(รายละเอียด[[#Headers],[ทนายด้านการล้มละลาย]],พารามิเตอร์[#Headers],0))*รายละเอียด[[#This Row],[งานที่ทำไปแล้ว]]","v":{"v":0,"d":"฿0"}},{"$f":"INDEX(พารามิเตอร์[],MATCH(รายละเอียด[[#This Row],[ชนิดโครงการ]],พารามิเตอร์[ชนิดโครงการ],0),MATCH(รายละเอียด[[#Headers],[เจ้าหน้าที่ธุรการ]],พารามิเตอร์[#Headers],0))*INDEX(พารามิเตอร์ของโครงการ!$B$12:$H$12,1,MATCH(รายละเอียด[[#Headers],[เจ้าหน้าที่ธุรการ]],พารามิเตอร์[#Headers],0))*รายละเอียด[[#This Row],[งานที่ทำไปแล้ว]]","v":{"v":9562.5,"d":"฿9,563"}}]
[null,"ผลรวม",{"$nulls":5},{"$f":"SUBTOTAL(109,รายละเอียด[งานโดยประมาณ])","v":1500},{"$f":"SUBTOTAL(109,รายละเอียด[งานที่ทำไปแล้ว])","v":1510},{"$f":"SUBTOTAL(109,รายละเอียด[ระยะเวลาโดยประมาณ])","v":190},{"$f":"SUBTOTAL(109,รายละเอียด[ระยะเวลาจริง])","v":169}]

{"sheet":"ผลรวมของโครงการ","index":3,"n_rows":11,"n_cols":16,"rows_kept":11,"merged":[[3,2,3,7],[3,8,3,13],[3,15,14,19]]}
["ดูผลรวมของโครงการในเวิร์กชีตนี้ ชื่อบริษัทจะอัปเดตในเซลล์ทางด้านขวาโดยอัตโนมัติ คำแนะนำที่มีประโยชน์จะอยู่ในเซลล์ในคอลัมน์นี้ ใช้ลูกศรลงเพื่อเริ่มต้นใช้งาน",{"$f":"พารามิเตอร์ของโครงการ!B1","v":"ชื่อบริษัท"}]
["ชื่อของเวิร์กชีตนี้จะอยู่ในเซลล์ด้านขวา",{"$f":"พารามิเตอร์ของโครงการ!B2","v":"การวางแผนโครงการสำหรับสำนักงานทนายความ"}]
["ข้อความที่เป็นความลับจะอยู่ในเซลล์ด้านขวา",{"$f":"พารามิเตอร์ของโครงการ!B3","v":"ชื่อบริษัทที่เป็นความลับ"}]
["ป้ายชื่อโดยประมาณอยู่ในเซลล์ C4 ป้ายชื่อตามจริงในเซลล์ I4 และเคล็ดลับข้อมูลในเซลล์ P4",null,"โดยประมาณ",{"$nulls":5},"ตามจริง",{"$nulls":6},"ข้อมูล: \nPivotTable นี้จะไม่รีเฟรชโดยอัตโนมัติ  เมื่อต้องการรีเฟรช ให้เลือกเซลล์ (เซลล์ใดก็ได้ใน PivotTable) บนเครื่องมือ PivotTable | แท็บ Ribbon วิเคราะห์ ให้เลือก รีเฟรช  หรือกด SHIFT + F10 โดยเลือก PivotTable และเลือก รีเฟรช"]
["PivotTable ที่เริ่มต้นจากเซลล์ด้านขวาจะอัปเดตโดยอัตโนมัติ","ชื่อโครงการ","คู่ค้าทั่วไป ","ธุรกิจ ","ทนายฝ่ายจำเลย ","ทรัพย์สินทางปัญญา ","การล้มละลาย ","เจ้าหน้าที่ธุรการ ","คู่ค้าทั่วไป  ","ธุรกิจ  ","ทนายฝ่ายจำเลย  ","การล้มละลาย  ","ทรัพย์สินทางปัญญา  ","เจ้าหน้าที่ธุรการ  "]
[null,"โครงการ 1",{"v":7000,"d":"฿7,000.00"},{"v":20000,"d":"฿20,000.00"},{"v":0,"d":"฿0.00"},{"v":0,"d":"฿0.00"},{"v":0,"d":"฿0.00"},{"v":12500,"d":"฿12,500.00"},{"v":7700,"d":"฿7,700.00"},{"v":22000,"d":"฿22,000.00"},{"v":0,"d":"฿0.00"},{"v":0,"d":"฿0.00"},{"v":0,"d":"฿0.00"},{"v":13750,"d":"฿13,750.00"}]
[null,"โครงการ 2",{"v":14000,"d":"฿14,000.00"},{"v":40000,"d":"฿40,000.00"},{"v":0,"d":"฿0.00"},{"v":11000,"d":"฿11,000.00"},{"v":0,"d":"฿0.00"},{"v":20000,"d":"฿20,000.00"},{"v":13650,"d":"฿13,650.00"},{"v":39000,"d":"฿39,000.00"},{"v":0,"d":"฿0.00"},{"v":10725,"d":"฿10,725.00"},{"v":0,"d":"฿0.00"},{"v":19500,"d":"฿19,500.00"}]
[null,"โครงการ 3",{"v":35000,"d":"฿35,000.00"},{"v":0,"d":"฿0.00"},{"v":75000,"d":"฿75,000.00"},{"v":0,"d":"฿0.00"},{"v":0,"d":"฿0.00"},{"v":18750,"d":"฿18,750.00"},{"v":35000,"d":"฿35,000.00"},{"v":0,"d":"฿0.00"},{"v":75000,"d":"฿75,000.00"},{"v":0,"d":"฿0.00"},{"v":0,"d":"฿0.00"},{"v":18750,"d":"฿18,750.00"}]
[null,"โครงการ 4",{"v":5250,"d":"฿5,250.00"},{"v":0,"d":"฿0.00"},{"v":0,"d":"฿0.00"},{"v":24750,"d":"฿24,750.00"},{"v":0,"d":"฿0.00"},{"v":5625,"d":"฿5,625.00"},{"v":5075,"d":"฿5,075.00"},{"v":0,"d":"฿0.00"},{"v":0,"d":"฿0.00"},{"v":23925,"d":"฿23,925.00"},{"v":0,"d":"฿0.00"},{"v":5437.5,"d":"฿5,437.50"}]
[null,"โครงการ 5",{"v":17500,"d":"฿17,500.00"},{"v":6250,"d":"฿6,250.00"},{"v":30000,"d":"฿30,000.00"},{"v":0,"d":"฿0.00"},{"v":0,"d":"฿0.00"},{"v":9375,"d":"฿9,375.00"},{"v":17850,"d":"฿17,850.00"},{"v":6375,"d":"฿6,375.00"},{"v":30600,"d":"฿30,600.00"},{"v":0,"d":"฿0.00"},{"v":0,"d":"฿0.00"},{"v":9562.5,"d":"฿9,562.50"}]
[null,"ผลรวมทั้งหมด",{"v":78750,"d":"฿78,750.00"},{"v":66250,"d":"฿66,250.00"},{"v":105000,"d":"฿105,000.00"},{"v":35750,"d":"฿35,750.00"},{"v":0,"d":"฿0.00"},{"v":66250,"d":"฿66,250.00"},{"v":79275,"d":"฿79,275.00"},{"v":67375,"d":"฿67,375.00"},{"v":105600,"d":"฿105,600.00"},{"v":34650,"d":"฿34,650.00"},{"v":0,"d":"฿0.00"},{"v":67000,"d":"฿67,000.00"}]